[Event "16th HSG Open-A 2022"]
[Site "Hilversum"]
[Date "2022.06.18"]
[Round "4.5"]
[White "Becx, Cesar"]
[Black "Van Foreest, Machteld"]
[Result "0-1"]
[ECO "A03"]
[WhiteElo "2101"]
[BlackElo "2287"]
[Annotator "TA"]
[PlyCount "92"]
[EventDate "2022.06.17"]
[EventCountry "NED"]
[SourceTitle "playchess.com"]
[Source "ChessBase"]
[SourceQuality "1"]
[TimeControl "6600+10"]

{[%evp 15,92,-16,-19,-15,0,0,0,0,0,-6,-2,-20,-22,-27,-26,-12,-18,-12,-13,-12,-6,-12,0,-38,-35,-37,-27,-36,-3,-44,0,0,0,-6,0,-145,-93,-179,-183,-591,-103,-103,-101,-121,-126,-128,-124,-124,-116,-110,-101,-536,-375,-1008,-1000,-1000,-658,-236,-1000,-1000,-992,-984,-252,-244,-223,-210,-180,-185,0,-164,0,-29967,-12616,-29959,-11472,-29977,-29978,-12845,-5300]} 1. f4 {[%emt 0:00:02]} d5 {[%emt 0:00:03]} 2. Nf3 {[%emt 0:00:08]} g6 {[%emt 0:00:04]} 3. g3 {[%emt 0:00:09]} Bg7 {[%emt 0:00:03]} 4. Bg2 {[%emt 0:00:05]} Nf6 {[%emt 0:00:04]} 5. O-O {[%emt 0:00:09]} O-O {[%emt 0:00:03]} 6. d3 {[%emt 0:00:05]} c5 {[%emt 0:00:03]} 7. c3 {[%emt 0:04:06] 7.c3 is better than 7.Qe1.} Nc6 {[%emt 0:00:05]} 8. Na3 {[%emt 0:00:05]} Rb8 {[%emt 0:00:30]} 9. Ne5 {[%emt 0:12:07] A03: Bird's Opening with 1...d5.} Nxe5 {[%emt 0:10:32]} 10. fxe5 {[%emt 0:00:05]} Nd7 {[%emt 0:00:08]} 11. d4 {[%emt 0:04:17] The position is equal.} e6 {[%emt 0:00:05]} 12. Nc2 {[%emt 0:16:43] [#]} Qb6 $146 {[%emt 0:09:25]} ({Predecessor:} 12... b6 13. Be3 Ba6 14. Qd2 Rc8 15. Ne1 f6 16. exf6 Nxf6 17. Nd3 Ne4 18. Rxf8+ Qxf8 19. Bxe4 dxe4 {1-0 (66) Movsziszian,K (2505)-Gajwa,A (2253) Bhopal 2018}) 13. e3 {[%emt 0:11:18]} cxd4 {[%emt 0:03:14]} 14. cxd4 {[%emt 0:00:10]} f6 {[%emt 0:02:23]} 15. exf6 {[%emt 0:03:00]} Nxf6 {[%emt 0:01:25]} 16. b3 {[%emt 0:02:07]} Bd7 {[%emt 0:03:39]} 17. Ba3 {[%emt 0:03:08]} Rf7 {[%emt 0:03:31]} 18. Bc5 {[%emt 0:02:03]} Qc7 {[%emt 0:01:34]} 19. a4 {[%emt 0:09:02]} (19. Bxa7 $2 Rc8 20. Bc5 b6 $19) 19... b6 {[%emt 0:03:43]} 20. Bb4 {[%emt 0:03:19]} a5 $36 {[%emt 0:03:18][%mdl 2048] Black is pushing.} 21. Bd2 {[%emt 0:00:57]} Rbf8 {[%emt 0:03:47]} (21... e5 $5 {[%cal Rd7g4]} 22. Rc1 Bg4 $15) 22. Na3 {[%emt 0:06:35]} Bh6 {[%emt 0:05:11]} (22... e5 $5 {[%cal Re5d4]}) 23. Rc1 {[%emt 0:12:17]} Qd8 {[%emt 0:06:12]} 24. Nb5 {[%emt 0:03:36]} Qe7 {[%emt 0:04:31] Prevents Nd6.} 25. b4 {[%emt 0:05:56]} (25. Nc3 $11 {remains equal.}) 25... axb4 {[%emt 0:07:19]} (25... Ne4 $142 {And now ...Rxf1+ would win.} 26. Rxf7 Qxf7 27. Bxe4 Qf2+ 28. Kh1 dxe4) 26. Qb3 {[%emt 0:00:28]} (26. Qe1 $17 {was worth a try.} Ne4 27. Rxf7 Rxf7 28. Bxe4 dxe4 29. Bxb4 Bxe3+ 30. Qxe3 Qxb4 31. Re1) 26... Ne4 $19 {[%emt 0:03:04]} 27. Bxb4 {[%emt 0:05:49] [#]} (27. Bxe4 dxe4 28. Bxb4 Rxf1+ 29. Rxf1 Rxf1+ 30. Kxf1 Qf6+ 31. Ke1 (31. Kg1 $2 Qf3 $19)) 27... Bxe3+ $1 {[%emt 0:00:44][%mdl 512]} 28. Qxe3 $17 {[%emt 0:01:53]} Rxf1+ {[%emt 0:00:15]} 29. Rxf1 {[%emt 0:02:36]} Rxf1+ {[%emt 0:00:05]} (29... Qxb4 $6 30. Rxf8+ Kxf8 31. Bxe4 dxe4 32. Qxe4 $11) 30. Kxf1 {[%emt 0:00:55]} Qxb4 {[%emt 0:00:47]} 31. Bxe4 {[%emt 0:00:16] aiming for Bc2.} Bxb5+ {[%emt 0:01:26]} (31... Qxa4 32. Nc3 Qa1+ 33. Bb1 $16) 32. axb5 {[%emt 0:00:09] Threatens to win with Bd3.} dxe4 $19 {[%emt 0:00:03][%cal Bd5e4,Be4e3][%mdl 4128] Endgame KQ-KQ} 33. Qg5 {[%emt 0:01:10][%mdl 8192]} (33. Qxe4 $17 {nothing else works.} Qxb5+ 34. Kg1) 33... Qc4+ {[%emt 0:01:02]} 34. Kg2 $2 {[%emt 0:00:15]} (34. Ke1 Qxd4 35. Qh4) 34... Qe2+ {[%emt 0:07:55]} 35. Kg1 {[%emt 0:00:25]} Qd1+ {[%emt 0:00:06]} 36. Kg2 {[%emt 0:00:06]} Qf3+ {[%emt 0:00:02]} (36... Qxd4 37. Qe7 $17) 37. Kg1 {[%emt 0:00:03]} e3 $1 {[%emt 0:01:30] ( -> ...Qf2+)} 38. Qf4 {[%emt 0:00:33]} Qd1+ $2 {[%emt 0:04:32]} (38... Qxf4 39. gxf4 Kf7) 39. Kg2 {[%emt 0:00:01]} Qc2+ {[%emt 0:00:22]} ({Stronger than} 39... e2 40. Qb8+ Kg7 41. Qe5+ Kh6 42. Qf4+ Kg7 43. Qe5+ Kg8 44. Qxe6+ Kf8 45. Qf6+ Kg8 46. Qe6+ Kh8 47. Qf6+ Kg8 48. Qe6+ $11) 40. Kg1 {[%emt 0:00:22]} Qb1+ {[%emt 0:02:39]} 41. Kg2 {[%emt 0:00:18] [#]} Qa2+ $2 {[%emt 0:02:17]} ({And not} 41... Qxb5 42. Qxe3 Qf5 43. h3 $17) ({Weaker is} 41... e2 42. Qb8+ Kf7 43. Qc7+ (43. Qb7+ Ke8 $11) 43... Kg8 44. Qb8+ Kf7 45. Qc7+ (45. Qb7+ Kg8 $11) 45... Kg8 46. Qb8+ $11) (41... Qb2+ $1 $19 42. Kg1 Qxb5 43. Qxe3 Qd5) 42. Kg1 $2 {[%emt 0:00:03]} (42. Kh3 $11 {and White stays safe.}) 42... Qa3 $2 {[%emt 0:00:43]} ({Black should try} 42... Qa1+ $19 43. Kg2 Qb2+ 44. Kg1 Qxb5 45. Qxe3 Qf5) 43. Qe5 $2 {[%emt 0:00:11][%mdl 8192]} (43. Qe4 $11) 43... Qc1+ {[%emt 0:01:33]} 44. Kg2 {[%emt 0:00:06] [#]} Qc2+ $1 {[%emt 0:00:03]} 45. Kf3 {[%emt 0:00:32]} Qf2+ {[%emt 0:17:40]} 46. Kg4 h5+ {[%emt 0:00:10] Weighted Error Value: White=0.90/Black=0.55} 0-1

[Event "16th HSG Open-A 2022"]
[Site "Hilversum"]
[Date "2022.06.18"]
[Round "4.6"]
[White "Pijpers, Arthur"]
[Black "Vlaming, Jos"]
[Result "1-0"]
[ECO "C18"]
[WhiteElo "2463"]
[BlackElo "2111"]
[Annotator "TA"]
[PlyCount "85"]
[EventDate "2022.06.17"]
[EventCountry "NED"]
[SourceTitle "playchess.com"]
[Source "ChessBase"]
[SourceQuality "1"]
[TimeControl "6600+10"]

{[%evp 17,84,94,94,91,105,96,110,85,140,141,128,135,146,148,216,159,154,158,162,163,164,154,216,193,186,201,232,213,222,205,170,143,146,172,270,119,119,112,111,111,206,0,0,0,0,0,687,240,275,258,252,244,635,635,610,583,724,717,716,716,950,934,29994,29995,29997,29998,29998,29999,29999]} 1. e4 {[%emt 0:00:03]} e6 {[%emt 0:00:05]} 2. d4 {[%emt 0:00:04]} d5 {[%emt 0:00:04]} 3. Nc3 {[%emt 0:00:03]} Bb4 {[%emt 0:00:05]} 4. e5 {[%emt 0:00:04]} c5 {[%emt 0:00:10]} 5. a3 {[%emt 0:00:04]} Bxc3+ {[%emt 0:01:34]} 6. bxc3 {[%emt 0:00:04]} Qc7 {[%emt 0:00:19]} 7. Qg4 {[%emt 0:00:08]} f5 {[%emt 0:00:56]} 8. Qg3 {[%emt 0:00:05]} cxd4 {[%emt 0:00:59]} 9. cxd4 {[%emt 0:00:07]} Ne7 {[%emt 0:01:25]} 10. c3 {[%emt 0:00:16] is the legacy move (10.Ne2). C18: French: 3 Nc3 Bb4: Main line: 7 h4 and 7 Qg4.} (10. Qxg7 $2 Qc3+ 11. Ke2 (11. Kd1 $2 Qxd4+ 12. Bd3 Rg8 $19) 11... Rg8 $19) 10... b6 {[%emt 0:09:13]} 11. Ne2 {[%emt 0:03:43]} O-O {[%emt 0:00:17]} 12. Nf4 {[%emt 0:00:12] Prevents Ng6. White is better.} Qd7 {[%emt 0:00:55]} ({Better is} 12... Ng6) 13. a4 $16 {[%emt 0:00:48] White is more active.} (13. Nh5 $6 Ng6 $11) 13... Ba6 {[%emt 0:04:59]} 14. Bb5 {[%emt 0:00:17]} Nec6 {[%emt 0:03:43]} 15. Ba3 {[%emt 0:10:46]} Rc8 {[%emt 0:01:05] [#]} (15... Re8 $16 16. h4 Qf7) 16. h4 $146 {[%emt 0:06:28]} ({Predecessor:} 16. Qh3 Bxb5 17. axb5 Ne7 18. Bxe7 Qxe7 19. g4 Nd7 20. gxf5 exf5 21. O-O {1-0 (21) Thompson,C (2166)-Swatek,W ICCF email 2013}) 16... Bxb5 {[%emt 0:05:52]} 17. axb5 {[%emt 0:00:05]} Na5 {[%emt 0:00:15]} 18. h5 {[%emt 0:10:25]} Qf7 {[%emt 0:05:37]} 19. Qg5 {[%emt 0:20:10]} Nd7 {[%emt 0:11:54]} (19... h6 $16 20. Qg6 Qxg6 21. hxg6 Re8) 20. Bb4 {[%emt 0:01:55]} Nb3 {[%emt 0:14:24] [#]} 21. Rb1 {[%emt 0:04:42]} a5 {[%emt 0:00:37]} 22. bxa6 $1 {[%emt 0:00:07]} (22. Rxb3 axb4 23. O-O Nf8 $14) 22... Rxa6 {[%emt 0:00:37]} 23. O-O {[%emt 0:02:54]} Nd2 {[%emt 0:09:35]} 24. Ra1 {[%emt 0:11:20]} Raa8 {[%emt 0:00:18]} 25. Rfd1 {[%emt 0:06:08] Strongly threatening Rxa8.} Nc4 {[%emt 0:01:46]} (25... Ne4 {was worth a try.} 26. Qh4 h6) 26. g4 {[%emt 0:03:28]} (26. h6 $18 {and White stays clearly on top.} g6 27. Rxa8 Rxa8 28. g4) 26... Ndxe5 {[%emt 0:10:30]} 27. dxe5 {[%emt 0:01:44]} Nxe5 {[%emt 0:01:53]} 28. Kg2 {[%emt 0:00:04] Prevents Nf3. gxf5 is the strong threat.} h6 {[%emt 0:00:21]} (28... Nxg4 $16 29. Rxa8 Rxa8) 29. Qh4 $2 {[%emt 0:00:27]} ({White should try} 29. Qe7 $18) 29... Rxa1 $11 {[%emt 0:04:34]} 30. Rxa1 {[%emt 0:00:02] Black must now prevent Qe7.} fxg4 {[%emt 0:00:14]} 31. Qg3 {[%emt 0:01:32] Hoping for Qe3.} Rc4 $2 {[%emt 0:01:35][%mdl 8192]} (31... Qb7 $11) 32. Bd6 $2 {[%emt 0:04:17]} (32. Ra8+ Kh7 33. Rf8) 32... Rxf4 {[%emt 0:02:19]} 33. Ra8+ {[%emt 0:10:03]} ({Not} 33. Bxe5 Rf3 34. Qh4 (34. Qxg4 Rxf2+ 35. Kg3 Rf5 $11) 34... Rf5 $11) 33... Kh7 {[%emt 0:00:02] [#]} 34. Rf8 $1 {[%emt 0:00:07] Dancing on a razor blade.} ({Weaker is} 34. Bxe5 Rf3 35. Qxg4 Rxf2+ 36. Kg3 Rf5 37. Qg6+ Qxg6+ 38. hxg6+ Kxg6 $11) 34... Re4 $2 {[%emt 0:12:41]} (34... Rf3 35. Qxe5 Qb7) 35. Rxf7 $18 {[%emt 0:01:04]} Nxf7 {[%emt 0:00:01]} 36. Bc7 {[%emt 0:02:13]} g6 {[%emt 0:01:08]} 37. hxg6+ {[%emt 0:00:37]} Kxg6 {[%emt 0:00:01]} 38. Bxb6 {[%emt 0:00:09]} Ng5 {[%emt 0:01:37]} 39. Qb8 {[%emt 0:00:46]} Nf3 {[%emt 0:01:19]} 40. Qg8+ {[%emt 0:00:50] White mates.} Kf6 {[%emt 0:00:23]} 41. Bd8+ {[%emt 0:00:23]} Ke5 {[%emt 0:00:10]} 42. Qg7+ {[%emt 0:00:06]} Kf5 {[%emt 0:00:17]} 43. Qf6# {[%emt 0:01:42] Weighted Error Value: White=0.30/Black=0.70} 1-0

[Event "16th HSG Open-A 2022"]
[Site "Hilversum"]
[Date "2022.06.18"]
[Round "4.7"]
[White "Leenhouts, Koen"]
[Black "Ercan, Selman"]
[Result "1-0"]
[ECO "D11"]
[WhiteElo "2416"]
[BlackElo "2094"]
[Annotator "TA"]
[PlyCount "77"]
[EventDate "2022.06.17"]
[EventCountry "NED"]
[SourceTitle "playchess.com"]
[Source "ChessBase"]
[SourceQuality "1"]
[TimeControl "6600+10"]

{[%evp 9,77,15,19,15,31,30,28,25,40,36,59,51,63,18,56,54,60,60,64,57,84,30,38,34,39,18,52,20,55,63,62,64,62,70,89,97,118,102,223,236,210,218,221,226,195,208,209,190,214,195,202,200,241,258,272,233,274,256,356,328,353,323,895,873,898,871,861,853,915,508]} 1. d4 {[%emt 0:07:01]} d5 {[%emt 0:00:18]} 2. c4 {[%emt 0:00:10]} c6 {[%emt 0:00:12]} 3. Nf3 {[%emt 0:00:46]} Nf6 {[%emt 0:00:20]} 4. g3 {[%emt 0:00:42]} Bf5 {[%emt 0:00:51]} 5. Nc3 {[%emt 0:00:18]} e6 {[%emt 0:00:30]} 6. Nh4 {[%emt 0:00:21] D11: Slav Defence: 3 Nf3 sidelines and 3...Nf6 4 e3 Bg4.} Bg6 {[%emt 0:01:15]} 7. Nxg6 {[%emt 0:00:21]} hxg6 {[%emt 0:00:07]} 8. Qd3 {[%emt 0:00:09] White has an edge.} Nbd7 {[%emt 0:00:50]} 9. Bg2 {[%emt 0:00:14]} Bd6 {[%emt 0:01:49]} 10. O-O {[%emt 0:00:26]} O-O {[%emt 0:01:45] [#]} 11. Re1 $146 {[%emt 0:01:30]} ({Predecessor:} 11. Rd1 Re8 12. Bg5 Qa5 13. c5 Bf8 14. Bd2 Qc7 15. f4 Nh7 16. g4 g5 17. e3 {½-½ (62) Lysyj,I (2666)-Pridorozhni,A (2517) Khanty-Mansiysk 2013}) 11... Qa5 {[%emt 0:06:53]} 12. c5 {[%emt 0:02:52]} Be7 {[%emt 0:03:26]} 13. Bd2 {[%emt 0:04:52][%cal Oc3d5] Nxd5! is the strong threat.} Qc7 {[%emt 0:10:14]} 14. b4 {[%emt 0:00:13][%cal Bb2b4,Bb4b5][%mdl 32]} e5 {[%emt 0:03:10]} 15. e3 {[%emt 0:01:57] White is more active.} (15. e4 $16 {[%cal Re4d5]} dxe4 16. Nxe4 (16. Bxe4 a5 $11)) 15... e4 {[%emt 0:06:39]} 16. Qe2 {[%emt 0:02:21]} Rfe8 {[%emt 0:07:57]} 17. b5 {[%emt 0:01:38]} Nf8 {[%emt 0:02:28]} 18. a4 {[%emt 0:02:42][%cal Ba2a4,Ba4a5][%mdl 32]} Qd7 {[%emt 0:02:45]} 19. a5 {[%emt 0:01:18]} a6 {[%emt 0:09:25][%cal Ra6b5]} 20. bxc6 {[%emt 0:00:18]} bxc6 {[%emt 0:00:11]} 21. Reb1 {[%emt 0:00:49]} Bd8 {[%emt 0:03:49] Inhibits Rb6.} 22. Na4 {[%emt 0:00:39] And now Nb6 would win.} Qf5 {[%emt 0:00:52]} 23. Rb7 {[%emt 0:00:44]} Ne6 {[%emt 0:04:20] This costs Black the game.} (23... Qc8 $16 {keeps fighting.} 24. Rab1 Ne6) 24. Nb6 {[%emt 0:01:16]} Bxb6 {[%emt 0:00:09]} 25. axb6 {[%emt 0:05:18]} Ng5 {[%emt 0:01:50][%cal Be6g5,Bg5f3,Bf3g1][%mdl 32]} 26. Kf1 {[%emt 0:02:59][%cal Bg1f1,Bf1e1,Be1d1,Bd1c2][%mdl 32]} (26. Rxa6 Nf3+ 27. Bxf3 exf3 $11) 26... Ng4 {[%emt 0:07:42]} 27. h3 {[%emt 0:03:43]} Nh2+ {[%emt 0:02:04]} 28. Ke1 {[%emt 0:01:52]} Ngf3+ {[%emt 0:13:32]} 29. Kd1 {[%emt 0:00:16]} Ng1 {[%emt 0:00:34] [#]} 30. Qe1 {[%emt 0:04:31]} (30. g4 Qc8 31. Rc7 Qxc7 $17) 30... Nxh3 {[%emt 0:01:59]} 31. Bxh3 {[%emt 0:00:38]} Qxh3 {[%emt 0:00:07]} 32. Kc2 {[%emt 0:00:47]} Qf5 {[%emt 0:02:52]} (32... Nf3 33. Qf1 Qf5 34. Rc7) 33. Qe2 {[%emt 0:00:42]} Ng4 {[%emt 0:00:31]} 34. Rc7 {[%emt 0:00:36]} Rac8 {[%emt 0:05:47]} 35. Rxc8 {[%emt 0:00:45]} (35. Rxa6 Rxc7 36. bxc7 Rc8 $16) 35... Qxc8 {[%emt 0:00:42]} (35... Rxc8 36. Rxa6 (36. Qxa6 Rb8 $16) 36... Kh7) 36. Qxa6 $18 {[%emt 0:01:06] White is clearly winning.} Qxa6 {[%emt 0:02:48]} 37. Rxa6 {[%emt 0:00:04] [#] Black must now prevent b7.} Rb8 {[%emt 0:00:20]} 38. Ra7 {[%emt 0:00:23]} Nf6 {[%emt 0:00:45]} 39. Rc7 {[%emt 0:00:07] Weighted Error Value: White=0.07 (flawless) /Black=0.22 (precise)} 1-0

[Event "16th HSG Open-A 2022"]
[Site "Hilversum"]
[Date "2022.06.18"]
[Round "4.8"]
[White "Gilmanov, Mansur"]
[Black "Bosboom, Ardin"]
[Result "0-1"]
[ECO "D45"]
[WhiteElo "2390"]
[BlackElo "2093"]
[Annotator "RC"]
[PlyCount "104"]
[EventDate "2022.06.17"]
[EventCountry "NED"]
[SourceTitle "playchess.com"]
[Source "ChessBase"]
[SourceQuality "1"]
[TimeControl "6600+10"]

1. d4 {[%emt 0:00:01]} d5 {[%emt 0:00:10]} 2. c4 {[%emt 0:00:43]} c6 {[%emt 0:00:05]} 3. Nc3 {[%emt 0:00:32]} Nf6 {[%emt 0:00:06]} 4. e3 {[%emt 0:01:13]} e6 {[%emt 0:01:43]} 5. Nf3 {[%emt 0:00:14]} Nbd7 {[%emt 0:00:15]} 6. Qc2 {[%emt 0:01:39]} Bd6 {[%emt 0:00:24]} 7. c5 {[%emt 0:01:08]} Bc7 {[%emt 0:02:23]} 8. b4 {[%emt 0:00:16]} e5 {[%emt 0:01:56]} 9. Bb2 {[%emt 0:00:59]} e4 {[%emt 0:02:03]} 10. Nd2 {[%emt 0:00:41]} O-O {[%emt 0:03:01]} 11. h3 {[%emt 0:01:27]} Re8 {[%emt 0:03:35]} 12. a4 {[%emt 0:03:20]} Nf8 {[%emt 0:03:04]} 13. Nb3 {[%emt 0:06:39]} N6d7 {[%emt 0:05:28]} 14. O-O-O {[%emt 0:01:27]} f5 {[%emt 0:01:46]} 15. g3 {[%emt 0:06:08]} Nf6 {[%emt 0:03:06]} 16. Be2 {[%emt 0:03:56]} Be6 {[%emt 0:04:14]} 17. Ba3 {[%emt 0:00:38]} Qd7 {[%emt 0:03:33]} 18. b5 {[%emt 0:00:44]} Bf7 {[%emt 0:01:28]} 19. a5 {[%emt 0:09:50]} Bh5 {[%emt 0:05:02]} 20. Bxh5 {[%emt 0:20:18]} Nxh5 {[%emt 0:00:40]} 21. b6 {[%emt 0:00:35]} Bd8 {[%emt 0:04:47]} 22. Kb2 {[%emt 0:01:30]} Ne6 {[%emt 0:06:47]} 23. bxa7 {[%emt 0:04:42]} Rxa7 {[%emt 0:06:52]} 24. Bb4 {[%emt 0:00:09]} g5 {[%emt 0:05:24]} 25. Qe2 {[%emt 0:05:51]} Qf7 {[%emt 0:02:44]} 26. Na4 {[%emt 0:01:29]} f4 {[%emt 0:05:25]} 27. g4 {[%emt 0:02:31]} fxe3 {[%emt 0:00:35]} 28. gxh5 {[%emt 0:01:03]} exf2 {[%emt 0:00:08]} 29. Bd2 {[%emt 0:14:34]} Nf4 {[%emt 0:07:01]} 30. Bxf4 {[%emt 0:01:50]} Qxf4 {[%emt 0:00:06]} 31. Rhf1 {[%emt 0:01:09]} Rf8 {[%emt 0:03:32]} 32. Nb6 {[%emt 0:02:31]} Qf3 {[%emt 0:02:02]} 33. Rd2 {[%emt 0:03:54]} e3 {[%emt 0:01:39]} 34. Rc2 {[%emt 0:00:02]} Qxh3 {[%emt 0:01:42]} 35. Rc3 {[%emt 0:01:24]} Qxf1 {[%emt 0:01:44]} 36. Qxf1 {[%emt 0:00:05]} e2 {[%emt 0:00:03]} 37. Qxe2 {[%emt 0:00:05]} f1=Q {[%emt 0:00:05]} 38. Qe6+ {[%emt 0:00:37]} Qf7 {[%emt 0:00:20]} 39. Qxf7+ {[%emt 0:01:28]} Rxf7 {[%emt 0:00:10]} 40. Re3 {[%emt 0:00:09]} Bxb6 {[%emt 0:00:45]} 41. cxb6 {[%emt 0:00:04]} Ra8 {[%emt 0:00:07]} 42. Nc5 {[%emt 0:00:12]} Rxa5 {[%emt 0:02:49]} 43. Re8+ {[%emt 0:01:36]} Kg7 {[%emt 0:00:16]} 44. Re6 {[%emt 0:01:54]} Rxc5 {[%emt 0:05:19]} 45. h6+ {[%emt 0:00:24]} Kf8 {[%emt 0:00:05]} 46. dxc5 {[%emt 0:00:02]} g4 {[%emt 0:00:23]} 47. Kc3 {[%emt 0:00:20]} Rf1 {[%emt 0:02:50]} 48. Rd6 {[%emt 0:00:39]} Ke7 {[%emt 0:00:46]} 49. Kd4 {[%emt 0:01:21]} g3 {[%emt 0:00:11]} 50. Ke5 {[%emt 0:00:07]} g2 {[%emt 0:00:25]} 51. Re6+ {[%emt 0:00:17]} Kf7 {[%emt 0:00:04]} 52. Kd6 {[%emt 0:00:51]} Rf6 {[%emt 0:00:25]} 0-1

[Event "16th HSG Open-A 2022"]
[Site "Hilversum"]
[Date "2022.06.18"]
[Round "4.9"]
[White "Wagenvoorde, Guido"]
[Black "Roebers, Eline"]
[Result "1-0"]
[ECO "D45"]
[WhiteElo "2090"]
[BlackElo "2369"]
[Annotator "TA"]
[PlyCount "63"]
[EventDate "2022.06.17"]
[EventCountry "NED"]
[SourceTitle "playchess.com"]
[Source "ChessBase"]
[SourceQuality "1"]
[TimeControl "6600+10"]

{[%evp 14,63,0,0,0,0,0,0,0,0,0,0,0,0,0,0,0,0,0,-29,0,0,56,68,578,570,1778,1771,1609,893,814,568,558,562,924,743,743,252,218,217,248,231,306,266,690,705,692,685,677,494,673,667]} 1. d4 {[%emt 0:01:28]} d5 {[%emt 0:03:50]} 2. c4 {[%emt 0:00:09]} c6 {[%emt 0:00:02]} 3. Nf3 {[%emt 0:00:08]} Nf6 {[%emt 0:00:03]} 4. Nc3 {[%emt 0:00:07]} e6 {[%emt 0:00:03][%cal Be7e6,Be6e5,Be5e4][%mdl 32]} 5. e3 {[%emt 0:00:08]} Nbd7 {[%emt 0:00:08]} 6. Qc2 {[%emt 0:00:08]} Bd6 {[%emt 0:03:15]} 7. g4 {[%emt 0:01:07]} h6 {[%emt 0:01:10]} 8. Rg1 $1 {[%emt 0:00:11] 8.Rg1 scores better than 8.Bd2.} e5 {[%emt 0:00:02] D45: Semi-Slav: 5 e3.} 9. cxd5 {[%emt 0:00:12]} cxd5 {[%emt 0:00:02]} 10. Nb5 {[%emt 0:00:16]} Bb8 {[%emt 0:00:06] The position is equal.} 11. g5 {[%emt 0:00:25]} hxg5 {[%emt 0:00:02]} 12. Nxg5 {[%emt 0:00:10][%cal Og5e6] Black must now prevent Ne6!} e4 {[%emt 0:00:03]} ({Don't play} 12... Rxh2 13. Bd2 (13. Nxf7 Kxf7 14. Qg6+ Ke6 $15) 13... Nb6 14. Nf3 $16) 13. Bd2 {[%emt 0:00:16]} Nb6 {[%emt 0:00:24]} 14. Rc1 {[%emt 0:00:16]} Bd7 {[%emt 0:01:45]} 15. Bb4 {[%emt 0:00:38] was the old line (15.Nc7+).} Bc6 {[%emt 0:01:17]} 16. f4 {[%emt 0:01:18]} exf3 {[%emt 0:44:18]} 17. Nxf3 {[%emt 0:01:56] [#]} Ne4 $146 {[%emt 0:04:01]} ({Black should try} 17... a5 $11 18. Bc5 Ne4 19. Rxg7 Nc4) ({Predecessor:} 17... a5 18. Bc5 Ne4 19. Rxg7 Nc4 20. Qg2 Nxc5 21. dxc5 Bxb5 22. Rg8+ Rxg8 23. Qxg8+ Ke7 24. Qg5+ Ke8 25. Qg8+ {½-½ (25) Verhoef,H (2471)-Bleker,F (2404) ICCF email 2013}) 18. Rxg7 $14 {[%emt 0:13:58] Strongly threatening Qg2.} a6 $2 {[%emt 0:07:30][%mdl 8192] [#] This costs Black the game.} ({Better is} 18... a5 $1 $14 19. Ba3 Nc4 20. Bxc4 dxc4) 19. Qg2 $1 $18 {[%emt 0:17:04] White threatens Rg8+ and mate.} Nf6 {[%emt 0:09:35] [#] Against Rg8+} (19... Qf6 20. Rg8+) 20. Ng5 $1 {[%emt 0:26:39]} Nh5 {[%emt 0:04:11] [#]} (20... Qd7 21. Qf3) 21. Qf2 $1 {[%emt 0:09:17][%csl Gg5,Gg7][%cal Rf2f7]} Qf6 {[%emt 0:04:47]} 22. Qxf6 {[%emt 0:09:47]} Nxf6 {[%emt 0:00:02]} 23. Rxf7 {[%emt 0:00:15]} Rxh2 {[%emt 0:02:18]} 24. Rf8+ {[%emt 0:06:37]} Kd7 {[%emt 0:00:01]} 25. Rxf6 $2 {[%emt 0:00:10]} (25. Rf7+ Ke8 26. Nd6+ Bxd6 27. Bxd6) 25... Bg3+ {[%emt 0:00:53]} 26. Kd1 {[%emt 0:00:06]} axb5 {[%emt 0:00:02]} 27. Rf3 $40 {[%emt 0:02:22][%mdl 128] White has strong attack. Chess con chili.} Bh4 {[%emt 0:00:41]} 28. Rf7+ {[%emt 0:02:52][%cal Bf3f7,Bf7e7,Be7c7][%mdl 32]} Ke8 $2 {[%emt 0:00:04]} (28... Kd8) 29. Re7+ {[%emt 0:01:44] White is clearly winning.} Kd8 {[%emt 0:00:04]} 30. Ne6+ {[%emt 0:00:09]} Kc8 {[%emt 0:00:01] [#]} 31. Rc7+ {[%emt 0:00:36]} ({Weaker is} 31. Re8+ Kd7 32. Rxa8 Nxa8 $16) 31... Kb8 {[%emt 0:00:01]} 32. Bd6 {[%emt 0:00:13] Weighted Error Value: White=0.43/Black=0.78} 1-0